bitfinex/quotes_BTCUSD_20230115
["timestamp","ask_amount","ask_price","bid_price","bid_amount"]
[1673747117245,0.01646319,20747.0,20746.0,1.01016802]
[1673747117497,0.01646319,20747.0,20746.0,1.30711943]
[1673747117759,0.01646319,20747.0,20746.0,1.34320969]
[1673747118016,0.01646319,20747.0,20746.0,2.52609192]
[1673747118517,0.01646319,20747.0,20746.0,1.70364672]
[1673747119266,0.01646319,20747.0,20746.0,2.52593225]
[1673747119831,0.01646319,20747.0,20746.0,2.52593602]
[1673747120326,0.01646319,20747.0,20746.0,1.70365049]
[1673747120832,0.01646319,20747.0,20746.0,1.48741046]
[1673747121082,0.01646319,20747.0,20746.0,1.70365049]
[1673747121352,0.01646319,20747.0,20746.0,1.78741046]
[1673747121615,0.01646319,20747.0,20746.0,1.49018847]
[1673747121897,0.01646319,20747.0,20746.0,0.7764677]
[1673747122164,0.01646319,20747.0,20746.0,0.5264217]
[1673747124663,0.01646319,20747.0,20746.0,0.7764677]
[1673747126462,0.01646319,20747.0,20746.0,1.2584877]
[1673747126765,0.01646319,20747.0,20746.0,1.0084417]
[1673747127037,0.01646319,20747.0,20746.0,1.2584877]
[1673747127743,0.01646319,20747.0,20746.0,1.22357298]
[1673747127995,0.01646319,20747.0,20746.0,0.787008]
[1673747128477,0.01640195,20747.0,20746.0,0.787008]
[1673747128951,0.01640195,20747.0,20746.0,0.93114877]
[1673747129195,0.01640195,20747.0,20746.0,1.00954877]
[1673747130187,0.01640195,20747.0,20746.0,1.30954877]
[1673747130450,0.01640195,20747.0,20746.0,2.04706742]
[1673747131215,0.01640195,20747.0,20746.0,2.14634168]
[1673747131460,0.01640195,20747.0,20746.0,1.62506306]
[1673747131702,0.01640195,20747.0,20746.0,1.00954877]
[1673747132516,0.01640195,20747.0,20746.0,1.2257888]
[1673747132757,0.004,20747.0,20746.0,2.19096249]
[1673747133266,0.004,20747.0,20746.0,1.97472246]
[1673747133528,0.01283533,20749.0,20746.0,2.28940865]
[1673747133765,0.01283533,20749.0,20748.0,0.079]
[1673747134015,0.01283533,20749.0,20748.0,1.042948]
[1673747134259,0.01283533,20749.0,20748.0,1.4457519]
[1673747134770,0.01283533,20749.0,20748.0,1.9127519]
[1673747135261,0.01283533,20749.0,20748.0,1.6127519]
[1673747135517,0.01283533,20749.0,20748.0,2.65024138]
[1673747136562,0.01283533,20749.0,20748.0,1.9127519]
[1673747137365,0.01283533,20749.0,20748.0,2.12918375]
[1673747137585,0.01283533,20749.0,20748.0,1.82918375]
[1673747137840,0.01283533,20749.0,20748.0,2.08995359]
[1673747138101,0.01283533,20749.0,20748.0,3.12809427]
[1673747139102,0.01283533,20749.0,20748.0,3.12802644]
[1673747139364,0.01283533,20749.0,20748.0,3.2721264]
[1673747139883,0.01320051,20750.0,20749.0,0.13309833]
[1673747140168,0.01320051,20750.0,20749.0,1.55514027]
[1673747140444,0.01320051,20750.0,20749.0,2.6877544]
[1673747141221,0.01320051,20750.0,20749.0,2.81024765]
[1673747141469,0.01320051,20750.0,20749.0,3.14002792]
[1673747142002,0.01320051,20750.0,20749.0,2.77976031]
[1673747142275,0.01320051,20750.0,20749.0,3.13982545]
[1673747143618,0.01320051,20750.0,20749.0,2.77976031]
[1673747143867,0.01320051,20751.0,20750.0,0.1]
[1673747144121,0.01320051,20751.0,20750.0,2.1618322]
[1673747144378,0.01320027,20752.0,20751.0,0.3002]
[1673747144642,0.01381775,20753.0,20752.0,0.1]
[1673747144904,0.00881775,20753.0,20752.0,3.29502877]
[1673747145154,0.00881775,20753.0,20752.0,3.51942098]
[1673747145418,0.00881775,20753.0,20752.0,3.49487633]
[1673747145691,0.00881775,20753.0,20752.0,2.6133528]
[1673747146728,0.00881775,20753.0,20752.0,2.6083528]
[1673747146807,0.00881775,20753.0,20752.0,1.79347693]
[1673747146809,0.00881775,20753.0,20752.0,0.75071493]
[1673747147028,0.00481775,20753.0,20752.0,0.73971493]
[1673747147249,0.00481775,20753.0,20752.0,0.333959]
[1673747147463,0.00481775,20753.0,20752.0,0.70305411]
[1673747147679,0.00481775,20753.0,20752.0,0.329019]
[1673747147680,0.00381775,20753.0,20752.0,0.329019]
[1673747148130,0.00481775,20753.0,20752.0,0.413019]
[1673747148568,0.00481775,20753.0,20752.0,0.721519]
[1673747149265,0.00481775,20753.0,20752.0,1.2034]
[1673747150111,0.00481775,20753.0,20752.0,1.39083801]
[1673747150664,0.00481775,20753.0,20752.0,1.39003801]
[1673747151345,0.00481775,20753.0,20752.0,0.9026]
[1673747151565,0.00481775,20753.0,20752.0,1.29666993]
[1673747153700,0.00481775,20753.0,20752.0,1.29660993]
[1673747154463,0.00481775,20753.0,20752.0,0.90254]
[1673747154717,0.00481775,20753.0,20752.0,1.20254]
[1673747155216,0.00481775,20753.0,20752.0,0.90254]
[1673747155458,0.00481775,20753.0,20752.0,1.20254]
[1673747155979,0.00481775,20753.0,20752.0,1.67974169]
[1673747156489,0.00481775,20753.0,20752.0,2.1236737]
[1673747156746,0.00481775,20753.0,20752.0,3.07905075]
[1673747158287,0.00481775,20753.0,20752.0,2.86315854]
[1673747158546,0.01375408,20754.0,20753.0,0.12629275]
[1673747158808,0.01375408,20754.0,20753.0,2.18914958]
[1673747159065,0.01375408,20754.0,20753.0,3.70280758]
[1673747159332,0.01375408,20754.0,20753.0,3.41526909]
[1673747159822,0.01415645,20756.0,20755.0,0.01953347]
[1673747160077,0.01415645,20756.0,20755.0,2.02956816]
[1673747160328,0.01415645,20756.0,20755.0,2.27948016]
[1673747160578,0.01415645,20756.0,20755.0,2.57948016]
[1673747161389,0.01515645,20756.0,20755.0,2.66548016]
[1673747161654,0.01515645,20756.0,20755.0,2.79102543]
[1673747161954,0.2058824,20756.0,20755.0,1.31906747]
[1673747162145,0.2058824,20756.0,20755.0,0.35544547]
[1673747162146,0.01515645,20756.0,20755.0,0.35544547]
[1673747162676,0.01515645,20756.0,20755.0,0.10553347]
[1673747163183,0.01515645,20756.0,20755.0,0.35544547]
[1673747163442,0.01515645,20756.0,20755.0,0.79112114]
[1673747163689,0.01515645,20756.0,20755.0,0.35616841]
[1673747164203,0.01515645,20756.0,20755.0,1.7151811]
[1673747164452,0.01515645,20756.0,20755.0,1.6236811]
[1673747165425,0.01515645,20756.0,20755.0,2.1054921]
[1673747165953,0.01515645,20756.0,20755.0,2.10264146]
[1673747167465,0.01515645,20756.0,20755.0,2.40264146]
[1673747167714,0.01515645,20756.0,20755.0,2.54636697]
[1673747167992,0.00732267,20756.0,20755.0,2.24636697]
[1673747168293,0.00732267,20756.0,20755.0,2.10264146]
[1673747168734,0.00632267,20756.0,20755.0,2.01658146]
[1673747168992,0.00632267,20756.0,20755.0,2.11458146]
[1673747169282,0.00632267,20756.0,20755.0,2.19348146]
[1673747169541,0.00632267,20756.0,20755.0,2.43520697]
[1673747169781,0.00632267,20756.0,20755.0,2.73520697]
[1673747170553,0.00632267,20756.0,20755.0,3.12733637]
[1673747170791,0.00632267,20756.0,20755.0,3.51287486]
[1673747171037,0.00632267,20756.0,20755.0,3.29722056]
[1673747171795,0.01381775,20757.0,20756.0,0.13326478]
[1673747172047,0.01381775,20757.0,20756.0,2.66212097]
[1673747172306,0.01381775,20757.0,20756.0,3.49299901]
[1673747172561,0.01411611,20759.0,20757.0,0.01381]
[1673747172810,0.01483082,20762.0,20757.0,0.01381]
[1673747172811,0.01483082,20762.0,20758.0,2.96387631]
[1673747173056,0.01483082,20762.0,20761.0,0.22245655]
[1673747173396,0.01483082,20762.0,20761.0,2.15317424]
[1673747173557,0.01483082,20762.0,20761.0,2.50299624]
[1673747173815,0.00483082,20762.0,20761.0,2.55913969]
[1673747174072,0.00483082,20762.0,20761.0,2.70299624]
[1673747174630,0.00483082,20762.0,20761.0,3.200955]
[1673747174839,0.00483082,20762.0,20761.0,2.20129676]
[1673747175088,0.00483082,20762.0,20761.0,1.81162476]
[1673747175343,0.00483082,20762.0,20761.0,0.83978076]
[1673747175845,0.00483082,20762.0,20761.0,0.83984076]
[1673747176341,0.00483082,20762.0,20761.0,0.74784076]
[1673747176600,0.00583082,20762.0,20761.0,0.83184076]
[1673747176853,0.00583082,20762.0,20761.0,1.31351276]
[1673747177388,0.00583082,20762.0,20761.0,1.61351276]
[1673747177655,0.00583082,20762.0,20761.0,1.62201276]
[1673747178178,0.00583082,20762.0,20761.0,1.32201276]
[1673747178460,0.00583082,20762.0,20761.0,1.18845772]
[1673747178952,0.00583082,20762.0,20761.0,0.824054]
[1673747179198,0.00583082,20762.0,20761.0,1.20119976]
[1673747179480,0.00583082,20762.0,20761.0,1.58562003]
[1673747179729,0.00583082,20762.0,20761.0,2.08430294]
[1673747180233,0.00583082,20762.0,20761.0,2.07821546]
[1673747180496,0.00583082,20762.0,20761.0,1.69991546]
[1673747180758,0.00583082,20762.0,20761.0,1.69984341]
[1673747181121,0.26029677,20762.0,20761.0,0.34230995]
[1673747181235,0.61580886,20762.0,20761.0,0.084]
[1673747181733,0.71006991,20762.0,20761.0,0.084]
[1673747183493,0.42508291,20762.0,20761.0,0.084]
[1673747183726,0.90673191,20762.0,20761.0,0.084]
[1673747184247,1.19171891,20762.0,20761.0,0.084]
[1673747184496,1.10503277,20762.0,20761.0,0.084]
[1673747184789,0.99320682,20762.0,20761.0,0.084]
[1673747185007,1.13762699,20762.0,20761.0,0.084]
[1673747185254,0.99320682,20762.0,20761.0,0.084]
[1673747185752,1.23762699,20762.0,20761.0,0.084]
[1673747186007,0.99320682,20762.0,20761.0,0.084]
[1673747186527,1.43762699,20762.0,20761.0,0.084]
[1673747186782,1.43762699,20762.0,20756.0,0.39137888]
[1673747186783,1.13662699,20762.0,20756.0,0.39137888]
[1673747187033,0.69563999,20762.0,20761.0,0.079]
[1673747187316,1.43792699,20762.0,20761.0,0.079]
[1673747187517,1.13692699,20762.0,20756.0,0.69581034]
[1673747187774,0.0782,20758.0,20756.0,0.39137888]
[1673747188036,0.0782,20758.0,20756.0,0.46837888]
[1673747188311,0.0782,20758.0,20756.0,0.39137888]
[1673747189040,0.0782,20758.0,20756.0,0.39126953]
[1673747189544,0.0782,20758.0,20756.0,0.00278543]
[1673747189805,0.3730954,20758.0,20756.0,0.00278543]
[1673747190056,0.3740954,20758.0,20756.0,0.08078543]
[1673747192788,0.01060567,20757.0,20756.0,0.08078543]
[1673747193047,0.24506158,20757.0,20756.0,0.08078543]
[1673747194035,0.24506158,20757.0,20756.0,0.00278543]
[1673747194299,0.24606158,20757.0,20756.0,0.08078543]
[1673747194551,0.01160567,20757.0,20756.0,0.08078543]
[1673747195053,0.27586423,20757.0,20756.0,0.08078543]
[1673747195588,0.35436423,20757.0,20756.0,0.08078543]
[1673747195849,0.43326423,20757.0,20756.0,0.08078543]
[1673747196149,1.20001623,20757.0,20756.0,0.08078543]
[1673747196578,0.01160567,20757.0,20756.0,0.08144834]
[1673747197067,0.01160567,20757.0,20756.0,0.33134134]
[1673747197311,0.01160567,20757.0,20756.0,0.08144834]
[1673747198118,0.01160567,20757.0,20756.0,0.56323634]
[1673747198932,0.01160567,20757.0,20756.0,0.56257343]
[1673747199184,0.01160567,20757.0,20756.0,0.5624369]
[1673747200248,0.01160567,20757.0,20756.0,0.0806489]
[1673747201012,0.24792924,20757.0,20756.0,0.0806489]
[1673747201263,0.32612924,20757.0,20756.0,0.0806489]
[1673747201773,0.40482924,20757.0,20756.0,0.0806489]
[1673747202027,0.68981624,20757.0,20756.0,0.0806489]
[1673747203549,1.17158124,20757.0,20756.0,0.0806489]
[1673747203779,1.17058124,20757.0,20756.0,0.0026489]
[1673747204022,1.17258124,20757.0,20756.0,0.0736489]
[1673747205011,1.17058124,20757.0,20756.0,0.0026489]
[1673747205262,1.17258124,20757.0,20756.0,0.0736489]
[1673747206290,0.93625767,20757.0,20756.0,0.0736489]
[1673747206538,1.35081817,20757.0,20756.0,0.0736489]
[1673747206806,1.206398,20757.0,20756.0,0.0736489]
[1673747208573,1.201398,20757.0,20756.0,0.0736489]
[1673747210811,1.201398,20757.0,20756.0,0.46489312]
[1673747210812,0.00760567,20757.0,20756.0,0.46489312]
[1673747213803,0.00760567,20757.0,20756.0,0.5554369]
[1673747214039,0.00760567,20757.0,20756.0,1.0428247]
[1673747215563,0.00760567,20757.0,20756.0,1.2927177]
[1673747217074,0.00760567,20757.0,20756.0,0.8053299]
[1673747217370,0.26207162,20757.0,20756.0,0.0736489]
[1673747217606,0.71261283,20757.0,20756.0,0.0736489]
[1673747217848,0.35633267,20757.0,20756.0,0.0736489]
[1673747218097,0.29259267,20757.0,20756.0,0.0736489]
[1673747218347,0.00760567,20757.0,20756.0,0.0736489]
[1673747220122,0.48937067,20757.0,20756.0,0.0736489]
[1673747221127,0.77435767,20757.0,20756.0,0.0736489]
[1673747221611,0.91877784,20757.0,20756.0,0.0736489]
[1673747222132,1.16542611,20757.0,20756.0,0.0736489]
[1673747222399,1.69657686,20757.0,20756.0,0.0736489]
[1673747222881,1.69331005,20757.0,20756.0,0.0736489]
[1673747223406,1.70772124,20757.0,20756.0,0.0736489]
[1673747223678,1.64450743,20757.0,20756.0,0.0736489]
[1673747223941,1.94450743,20757.0,20756.0,0.0736489]
[1673747224172,1.93294799,20757.0,20756.0,0.0736489]
[1673747224427,2.2329484,20757.0,20756.0,0.0736489]
[1673747225270,1.9329484,20757.0,20756.0,0.0736489]
[1673747225482,1.59429023,20757.0,20756.0,0.0736489]
[1673747225730,1.30584926,20757.0,20756.0,0.0736489]
[1673747225977,1.45004795,20757.0,20756.0,0.071]
[1673747226275,1.45004795,20757.0,20756.0,0.69054849]
[1673747226276,0.00760567,20757.0,20756.0,0.69054849]
[1673747226758,0.00760567,20757.0,20756.0,0.82090003]
[1673747227555,0.00760567,20757.0,20756.0,1.181581]
[1673747227817,0.002,20757.0,20756.0,1.32543755]
[1673747228078,0.002,20757.0,20756.0,1.42543755]
[1673747228335,0.002,20757.0,20756.0,0.88224391]
[1673747228885,0.14419869,20761.0,20756.0,0.81124391]
[1673747229167,0.14419869,20761.0,20757.0,0.11954146]
[1673747229438,1.56822278,20761.0,20757.0,0.60128946]
[1673747230243,0.14419869,20760.0,20757.0,0.69228946]
[1673747230548,0.14419869,20760.0,20757.0,0.572748]
[1673747230794,1.56822278,20761.0,20758.0,0.39979301]
[1673747231050,1.56822278,20761.0,20759.0,0.00066281]
[1673747231304,1.35191738,20761.0,20759.0,0.48237681]
[1673747232104,1.20771869,20761.0,20759.0,0.48237681]
[1673747232371,1.63188727,20761.0,20759.0,0.481714]
[1673747232643,0.24818449,20760.0,20759.0,0.022]
[1673747232893,0.39238318,20760.0,20759.0,0.022]
[1673747233150,0.42918569,20760.0,20759.0,0.022]
[1673747233399,0.31218673,20759.0,20756.0,0.8509216]
[1673747233650,0.50291268,20759.0,20756.0,0.4947216]
[1673747233909,0.31218673,20759.0,20757.0,0.472877]
[1673747235176,2.33732046,20761.0,20758.0,0.48335778]
[1673747235434,2.33732046,20761.0,20758.0,0.60289924]
[1673747235937,0.26571084,20760.0,20758.0,0.48335778]
[1673747236203,1.11184804,20759.0,20757.0,0.091]
[1673747236461,0.50735572,20758.0,20754.0,0.48943637]
[1673747236771,0.4137056,20757.0,20754.0,0.48943637]
[1673747237001,0.284987,20756.0,20754.0,0.48943637]
[1673747237248,0.19072595,20756.0,20754.0,0.48943637]
[1673747237503,0.92106505,20757.0,20754.0,0.48943637]
[1673747237762,0.92106505,20757.0,20754.0,0.58043637]
[1673747238537,0.70475965,20757.0,20754.0,0.48943637]
[1673747238817,0.70475965,20757.0,20752.0,0.0047245]
[1673747239086,0.22442395,20756.0,20754.0,0.091]
[1673747240163,0.22442395,20756.0,20753.0,0.45504831]
[1673747240406,0.22442395,20756.0,20754.0,0.091]
[1673747241178,0.22442395,20756.0,20753.0,0.45504831]
[1673747241429,0.22442395,20756.0,20754.0,0.46590567]
[1673747241702,0.22431608,20756.0,20754.0,0.46590567]
[1673747241962,0.22431608,20756.0,20754.0,0.55690567]
[1673747242264,0.22431608,20756.0,20754.0,0.46590567]
[1673747243054,0.22431608,20756.0,20754.0,0.55690567]
[1673747245847,0.00010383,20757.0,20754.0,0.21054146]
[1673747246132,0.00010383,20757.0,20755.0,0.66470916]
[1673747246356,0.00010383,20757.0,20755.0,0.41480116]
[1673747246601,0.00010383,20757.0,20756.0,0.349894]
[1673747247595,0.00010383,20757.0,20756.0,0.831682]
[1673747248335,0.00010383,20757.0,20756.0,0.922682]
[1673747248815,0.00010383,20757.0,20756.0,1.40447]
[1673747249839,0.00010383,20757.0,20756.0,1.54832655]
[1673747251116,0.00010383,20757.0,20756.0,1.84832655]
[1673747251616,0.00010383,20757.0,20756.0,1.54832655]
[1673747252612,0.00010383,20757.0,20756.0,1.80381051]
[1673747252855,0.01154389,20757.0,20756.0,1.30447]
[1673747253076,0.01154389,20757.0,20756.0,1.72249441]
[1673747253651,0.01154389,20757.0,20756.0,1.30447]
[1673747254391,0.01154389,20757.0,20756.0,1.80973397]
[1673747254650,0.01154389,20757.0,20756.0,1.66587742]
[1673747255129,0.01154389,20757.0,20756.0,1.30447]
[1673747255384,0.01154389,20757.0,20756.0,1.44832655]
[1673747255633,0.01154389,20757.0,20756.0,1.9130119]
[1673747255882,0.01154389,20757.0,20756.0,1.44832655]
[1673747257094,0.01154389,20757.0,20756.0,2.00372824]
[1673747257339,0.00483082,20762.0,20757.0,0.33024584]
[1673747257643,0.00483082,20762.0,20761.0,0.0789]
[1673747257896,0.00483082,20762.0,20761.0,1.89328046]
[1673747258147,0.00483082,20762.0,20761.0,1.773739]
[1673747258406,0.00483082,20762.0,20761.0,1.91781487]
[1673747258655,0.00483082,20762.0,20761.0,1.773739]
[1673747258912,0.00483082,20762.0,20761.0,2.073739]
[1673747259152,0.00483082,20762.0,20761.0,2.165739]
[1673747259675,0.00483082,20762.0,20761.0,2.64294069]
[1673747259909,0.00483082,20762.0,20761.0,2.76422624]
[1673747260156,0.00483082,20762.0,20761.0,2.35144069]
[1673747260402,0.00483082,20762.0,20761.0,2.65144069]
[1673747261193,0.00483082,20762.0,20761.0,2.35144069]
[1673747261427,0.00483082,20762.0,20761.0,2.75535092]
[1673747262426,0.00483082,20762.0,20761.0,2.67645092]
[1673747262671,0.00483082,20762.0,20761.0,0.74573323]
[1673747262672,0.19555677,20762.0,20761.0,0.74573323]
[1673747262920,0.00483082,20762.0,20761.0,0.74573323]
[1673747263938,0.00483082,20762.0,20761.0,1.22740523]
[1673747264422,0.00483082,20762.0,20761.0,0.823495]
[1673747264666,0.00483082,20762.0,20761.0,1.27836688]
[1673747267438,0.00483082,20762.0,20761.0,1.38779669]
[1673747267677,0.00483082,20762.0,20761.0,1.68779669]
[1673747268442,0.00483082,20762.0,20761.0,1.38779669]
[1673747269198,0.00483082,20762.0,20761.0,1.68779669]
[1673747270677,0.00483082,20762.0,20761.0,1.9743735]
[1673747271928,0.00483082,20762.0,20761.0,2.0528735]
[1673747272430,0.00483082,20762.0,20761.0,2.19694937]
[1673747273170,0.00483082,20762.0,20761.0,2.10494937]
[1673747273681,0.00483082,20762.0,20761.0,2.19694937]
[1673747274686,0.00483082,20762.0,20761.0,2.0528735]
[1673747275670,0.00483082,20762.0,20761.0,1.95734881]
[1673747275917,0.00483082,20762.0,20761.0,1.87884881]
[1673747279485,0.00483082,20762.0,20761.0,1.78684881]
[1673747279993,0.0047522,20762.0,20760.0,0.38230869]
[1673747280243,0.0057522,20762.0,20761.0,0.085]
[1673747281019,0.0057522,20762.0,20760.0,0.38230869]
[1673747281257,0.0057522,20762.0,20761.0,0.46277612]
[1673747282238,0.0047522,20762.0,20761.0,0.46277612]
[1673747282492,0.0057522,20762.0,20761.0,0.54777612]
[1673747287301,0.0057522,20762.0,20761.0,0.79759412]
[1673747289194,0.0057522,20762.0,20761.0,1.27926612]
[1673747289438,0.0057522,20762.0,20761.0,0.81649]
[1673747289687,0.0057522,20762.0,20761.0,1.18747664]
[1673747290221,0.0057522,20762.0,20761.0,0.81649]
[1673747290717,0.0057522,20762.0,20761.0,0.82499]
[1673747291236,0.0057522,20762.0,20761.0,1.26906587]
[1673747291493,0.0057522,20762.0,20761.0,0.96906587]
[1673747291959,0.0057522,20762.0,20761.0,1.26906587]
[1673747292468,0.0057522,20762.0,20761.0,2.40790088]
[1673747292732,0.0057522,20762.0,20761.0,2.39603297]
[1673747292996,0.0057522,20762.0,20761.0,2.25194676]
[1673747293251,0.0057522,20762.0,20761.0,2.69603297]
[1673747293510,0.0057522,20762.0,20761.0,2.40788123]
[1673747293787,0.0057522,20762.0,20761.0,2.55194813]
[1673747294554,0.0057522,20762.0,20761.0,2.47993882]
[1673747294848,0.0057522,20762.0,20761.0,2.84012849]
[1673747295119,0.01558717,20765.0,20762.0,0.00382133]
[1673747295673,0.01558717,20765.0,20764.0,0.36029003]
[1673747295675,0.01558717,20765.0,20764.0,0.72702205]
[1673747295941,0.01558717,20765.0,20764.0,2.45439964]
[1673747296215,0.01558717,20765.0,20764.0,2.85439964]
[1673747296749,0.01558717,20765.0,20764.0,2.49410961]
[1673747297783,0.01558717,20765.0,20764.0,4.66600961]
[1673747298029,0.01558717,20765.0,20764.0,4.57300961]
[1673747298285,0.01558717,20765.0,20764.0,4.66500961]
[1673747298540,1.7e-07,20765.0,20764.0,4.66529733]
[1673747298811,0.01632751,20766.0,20765.0,5.983e-05]
[1673747299071,0.01632751,20766.0,20765.0,4.8574578]
[1673747299343,0.01632751,20766.0,20765.0,5.36955753]
[1673747299568,0.01613894,20767.0,20766.0,0.1]
[1673747299823,0.01613894,20767.0,20766.0,2.02344191]
[1673747300103,0.01613894,20767.0,20766.0,2.83552664]
[1673747300380,0.01613894,20767.0,20766.0,4.83552664]
[1673747300660,0.01613894,20767.0,20766.0,5.33899458]
[1673747301163,0.01613894,20767.0,20766.0,5.14330591]
[1673747301421,0.01613894,20767.0,20766.0,5.21505637]
[1673747301730,0.01613894,20767.0,20766.0,5.57468947]
[1673747302026,0.01613894,20767.0,20766.0,3.50276735]
[1673747302027,0.02859225,20767.0,20766.0,3.50276735]
[1673747302291,0.02859225,20767.0,20766.0,2.74751042]
[1673747302550,0.02859225,20767.0,20766.0,2.44434675]
[1673747302815,0.02859225,20767.0,20766.0,1.44434675]
[1673747303098,0.02859225,20767.0,20766.0,1.66011042]
[1673747303540,0.02859225,20767.0,20766.0,2.169817]
[1673747303799,0.02859225,20767.0,20766.0,2.46981641]
[1673747304050,0.02859225,20767.0,20766.0,2.47831685]
[1673747304296,0.02859225,20767.0,20766.0,1.75284675]
[1673747304541,0.02859225,20767.0,20766.0,2.10562113]
[1673747304808,0.02859225,20767.0,20766.0,1.66177607]
[1673747305821,0.02859225,20767.0,20766.0,1.30900169]
[1673747306575,0.02859225,20767.0,20766.0,1.60900169]
[1673747307086,0.02859225,20767.0,20766.0,1.75284675]
[1673747307340,0.02859225,20767.0,20766.0,1.96861042]
[1673747307595,0.02859225,20767.0,20766.0,2.62249509]
[1673747308299,0.02859225,20767.0,20766.0,5.6941049]
[1673747308547,0.02859225,20767.0,20766.0,2.8519049]
[1673747308785,0.02339309,20768.0,20767.0,0.11263003]
[1673747309027,0.02339309,20768.0,20767.0,2.91558387]
[1673747309281,0.02339309,20768.0,20767.0,3.34685575]
[1673747309530,0.02339309,20768.0,20767.0,3.20316624]
[1673747309772,0.02339309,20768.0,20767.0,3.63497192]
[1673747310287,0.02339309,20768.0,20767.0,3.72797192]
[1673747310528,0.02339309,20768.0,20767.0,3.36833882]
[1673747311608,0.01641098,20768.0,20767.0,3.36833882]
[1673747311874,0.01641098,20768.0,20767.0,3.72797192]
[1673747312131,9.8e-07,20768.0,20767.0,3.44026532]
[1673747312377,0.01632751,20770.0,20767.0,3.44032532]
[1673747312632,0.01632751,20770.0,20769.0,0.32184621]
[1673747312875,0.00396693,20770.0,20769.0,3.29646427]
[1673747313128,0.00128693,20770.0,20769.0,3.30496427]
[1673747313386,0.00128693,20770.0,20769.0,3.08964496]
[1673747313647,0.00128693,20770.0,20769.0,3.16784496]
[1673747313901,0.00128693,20770.0,20769.0,3.26084496]
[1673747314406,0.00128693,20770.0,20769.0,3.02429875]
[1673747314858,0.00128693,20770.0,20769.0,3.11629875]
[1673747315111,0.01729935,20774.0,20771.0,0.01040003]
[1673747315368,0.01729935,20774.0,20772.0,1.444251]
[1673747315615,0.01729935,20774.0,20773.0,0.349642]
[1673747315852,0.01729935,20774.0,20773.0,0.831036]
[1673747316871,0.01729935,20774.0,20773.0,0.924036]
[1673747317136,0.01729935,20774.0,20773.0,0.824036]
[1673747317623,0.01729935,20774.0,20773.0,1.192601]
[1673747320134,0.01729935,20774.0,20773.0,1.292601]
[1673747320355,0.01729935,20774.0,20773.0,1.292661]
[1673747320679,0.01729935,20774.0,20773.0,0.924096]
[1673747321172,0.01729935,20774.0,20773.0,1.70979769]
[1673747321423,0.01729935,20774.0,20773.0,0.09306]
[1673747321689,0.29568296,20774.0,20773.0,0.09306]
[1673747323203,0.58066996,20774.0,20773.0,0.09306]
[1673747323710,0.00229935,20774.0,20773.0,0.44724994]
[1673747325493,0.00229935,20774.0,20773.0,0.44718994]
[1673747326500,0.00229935,20774.0,20773.0,0.79682994]
[1673747327255,0.00229935,20774.0,20773.0,0.69682994]
[1673747327772,0.00229935,20774.0,20773.0,0.44718994]
[1673747327992,0.01249902,20774.0,20773.0,0.44718994]
[1673747328211,0.01249902,20774.0,20773.0,0.69682994]
[1673747329948,0.01249902,20774.0,20773.0,0.79682994]
[1673747330202,0.01249902,20774.0,20773.0,0.69682994]
[1673747330424,0.01249902,20774.0,20773.0,1.17822394]
[1673747333757,0.00749902,20774.0,20773.0,1.17822394]
[1673747336775,0.00749902,20774.0,20773.0,0.92858394]
[1673747339237,0.08559902,20774.0,20773.0,0.093]
[1673747339493,1.05879333,20774.0,20773.0,0.093]
[1673747339741,1.70983895,20774.0,20773.0,0.093]
[1673747339990,1.56548778,20774.0,20773.0,0.093]
[1673747340240,1.48658778,20774.0,20773.0,0.093]
[1673747340495,1.27045136,20774.0,20773.0,0.093]
[1673747340751,1.12636156,20774.0,20773.0,0.093]
[1673747341036,1.27045136,20774.0,20773.0,0.093]
[1673747341334,1.27145136,20774.0,20773.0,0.085]
[1673747341835,1.48735378,20774.0,20773.0,0.085]
[1673747342360,1.27121736,20774.0,20773.0,0.085]
[1673747342637,1.34326398,20774.0,20773.0,0.085]
[1673747343133,1.48738727,20774.0,20773.0,0.085]
[1673747344396,1.34326398,20774.0,20773.0,0.085]
[1673747344687,1.4874015,20774.0,20773.0,0.08492425]
[1673747344903,1.48740132,20774.0,20773.0,0.08492425]
[1673747345165,1.2712649,20774.0,20773.0,0.08492425]
[1673747346408,1.63170495,20774.0,20773.0,0.08492425]
[1673747346907,1.97863394,20774.0,20773.0,0.08492425]
[1673747347407,1.63177488,20774.0,20773.0,0.08492425]
[1673747347681,1.78309964,20774.0,20773.0,0.08492425]
[1673747347924,1.49465867,20774.0,20773.0,0.08492425]
[1673747348176,1.78294327,20774.0,20773.0,0.08492425]
[1673747348442,1.49465867,20774.0,20773.0,0.08492425]
[1673747348674,1.73292003,20774.0,20773.0,0.08492425]
[1673747348940,1.49465867,20774.0,20773.0,0.08492425]
[1673747349187,1.49465867,20774.0,20771.0,6e-05]
[1673747349188,1.49365867,20774.0,20771.0,6e-05]
[1673747349436,0.51744797,20772.0,20771.0,6e-05]
[1673747349680,1.76526897,20772.0,20771.0,6e-05]
[1673747349926,1.62116978,20772.0,20771.0,6e-05]
[1673747350894,1.76625993,20772.0,20771.0,0.07906]
[1673747351175,2.03667515,20772.0,20771.0,0.07906]
[1673747351679,2.66625993,20772.0,20771.0,0.07906]
[1673747351939,3.60010291,20772.0,20771.0,0.07906]
[1673747352210,3.40345085,20772.0,20771.0,0.05223497]
[1673747352514,3.73574163,20772.0,20764.0,0.43492887]
[1673747352701,0.0783,20765.0,20764.0,0.43492887]
[1673747352948,0.26902595,20765.0,20764.0,0.43492887]
[1673747353192,0.55401295,20765.0,20764.0,0.43492887]
[1673747353456,0.0783,20765.0,20764.0,0.00387218]
[1673747353703,0.363287,20765.0,20764.0,0.00387218]
[1673747354208,0.014,20765.0,20764.0,0.00387218]
[1673747354458,0.014,20765.0,20764.0,0.13473218]
[1673747354705,0.014,20765.0,20764.0,0.38450618]
[1673747355470,0.014,20765.0,20764.0,0.86610818]
[1673747355985,0.014,20765.0,20764.0,2.08957539]
[1673747356216,0.014,20765.0,20764.0,2.75996222]
[1673747356727,0.014,20765.0,20764.0,3.04705463]
[1673747356972,0.014,20765.0,20764.0,4.05126842]
[1673747357239,0.009,20772.0,20765.0,0.1]
[1673747357468,0.009,20772.0,20767.0,1.52349]
[1673747357718,0.009,20772.0,20768.0,0.51954146]
[1673747357978,0.009,20772.0,20769.0,1.81368646]
[1673747358227,0.3039839,20774.0,20770.0,0.249684]
[1673747358501,0.20148967,20775.0,20771.0,1.33207946]
[1673747358780,0.20148967,20775.0,20773.0,0.0782]
[1673747358997,0.20148967,20775.0,20774.0,1.212368]
[1673747359512,0.20148967,20775.0,20773.0,0.481372]
[1673747360035,0.20148967,20775.0,20774.0,0.249625]
[1673747360251,0.20148967,20775.0,20774.0,0.01]
[1673747360509,0.20148967,20775.0,20773.0,0.481372]
[1673747360753,0.20148967,20775.0,20773.0,0.008]
[1673747361012,0.20148967,20775.0,20772.0,0.93216377]
[1673747361263,0.20148967,20775.0,20774.0,0.01]